bitfinex/quotes_BTCUSD_20251120
["timestamp","ask_amount","ask_price","bid_price","bid_amount"]
[1763679726810,0.323,88213.0,88209.0,0.01647]
[1763679727006,0.323,88211.0,88209.0,0.01647]
[1763679727232,0.323,88209.0,88201.0,0.03265]
[1763679727557,0.128865,88206.0,88204.0,0.01647]
[1763679727780,0.628865,88206.0,88204.0,0.01647]
[1763679727933,0.451865,88206.0,88205.0,0.02415062]
[1763679728456,0.451865,88206.0,88205.0,0.00111062]
[1763679731076,0.44871,88206.0,88205.0,0.00111062]
[1763679731321,0.46978984,88206.0,88205.0,0.02415062]
[1763679731974,0.51783984,88206.0,88205.0,0.00111062]
[1763679732178,0.01,88203.0,88200.0,0.0004]
[1763679732384,0.35656,88201.0,88200.0,0.0004]
[1763679732531,4.42053296,88201.0,88200.0,0.0004]
[1763679732735,4.4945919,88201.0,88200.0,0.0004]
[1763679732940,4.60395883,88201.0,88200.0,0.0004]
[1763679733145,0.04961894,88192.0,88170.0,0.0004]
[1763679733345,4.57634253,88191.0,88170.0,0.0004]
[1763679733504,4.6502519,88191.0,88170.0,0.0004]
[1763679733710,4.6746919,88191.0,88170.0,0.0004]
[1763679734496,4.67468269,88191.0,88170.0,0.0004]
[1763679734856,4.67568269,88191.0,88170.0,0.0004]
[1763679735213,3.75449426,88191.0,88173.0,0.01647]
[1763679735420,0.48547096,88191.0,88173.0,0.01647]
[1763679735659,0.46823096,88191.0,88176.0,0.03265]
[1763679735874,0.45810396,88191.0,88176.0,0.03265]
[1763679736089,0.46174396,88191.0,88176.0,0.03265]
[1763679736297,0.48224396,88191.0,88173.0,0.01647]
[1763679736507,0.50668396,88191.0,88173.0,0.01647]
[1763679736718,0.50868396,88191.0,88170.0,0.0004]
[1763679736925,0.50768396,88191.0,88171.0,0.01647]
[1763679737132,0.46074396,88191.0,88171.0,0.01647]
[1763679737332,0.46174396,88191.0,88173.0,0.03265]
[1763679737536,0.50868396,88191.0,88170.0,0.0004]
[1763679737827,0.50768396,88191.0,88170.0,0.0004]
[1763679738031,0.50868396,88191.0,88170.0,0.0004]
[1763679738229,0.50868396,88191.0,88190.0,0.00086293]
[1763679738573,0.5583029,88191.0,88190.0,0.00086293]
[1763679738775,0.61040539,88191.0,88190.0,0.00086293]
[1763679739008,0.323,88173.0,88170.0,0.0004]
[1763679739210,4.49262008,88171.0,88170.0,0.0004]
[1763679739402,4.52424004,88171.0,88170.0,0.0004]
[1763679739618,4.60078253,88171.0,88170.0,0.0004]
[1763679740732,4.15615704,88171.0,88170.0,0.0004]
[1763679740961,3.47300504,88171.0,88170.0,0.0004]
[1763679741159,1.41515396,88171.0,88170.0,0.0004]
[1763679741928,1.40461384,88171.0,88170.0,0.0004]
[1763679742136,1.40561384,88171.0,88170.0,0.0004]
[1763679742844,1.40461384,88171.0,88170.0,0.0004]
[1763679743251,1.41516076,88171.0,88170.0,0.0004]
[1763679743662,1.40461384,88171.0,88170.0,0.0004]
[1763679744084,0.02107984,88171.0,88170.0,0.05609]
[1763679744488,4.032353,88197.0,88170.0,0.05609]
[1763679744691,0.323,88178.0,88170.0,0.05609]
[1763679744887,0.54872023,88177.0,88170.0,0.02344]
[1763679745070,0.381018,88175.0,88170.0,0.0004]
[1763679745268,0.02110023,88174.0,88170.0,0.0004]
[1763679745482,0.02110023,88173.0,88170.0,0.0004]
[1763679745687,0.02110023,88172.0,88170.0,0.0004]
[1763679746013,0.02110023,88171.0,88170.0,0.0004]
[1763679746148,0.02111436,88171.0,88170.0,0.0004]
[1763679746347,0.208007,88180.0,88170.0,0.0004]
[1763679746348,0.161807,88180.0,88170.0,0.02344]
[1763679746549,4.032353,88198.0,88171.0,0.01647]
[1763679746750,0.585215,88183.0,88171.0,0.01647]
[1763679746952,1.441611,88181.0,88170.0,0.0004]
[1763679747178,0.4906,88179.0,88170.0,0.0004]
[1763679747416,0.19558633,88177.0,88170.0,0.0004]
[1763679747606,0.328115,88175.0,88170.0,0.0004]
[1763679747844,0.01056231,88174.0,88170.0,0.0004]
[1763679748028,0.11476708,88184.0,88170.0,0.0004]
[1763679748221,1.859327,88182.0,88170.0,0.0004]
[1763679748424,0.323,88178.0,88170.0,0.0004]
[1763679748629,0.352437,88176.0,88170.0,0.0004]
[1763679748802,0.11476708,88184.0,88170.0,0.0004]
[1763679748803,0.57024,88174.0,88170.0,0.0004]
[1763679749012,0.389905,88172.0,88170.0,0.0004]
[1763679749193,0.84740818,88171.0,88170.0,0.0004]
[1763679749395,0.34740818,88171.0,88170.0,0.0004]
[1763679749596,0.35856818,88171.0,88170.0,0.0004]
[1763679749799,0.36972818,88171.0,88170.0,0.0004]
[1763679750026,0.69272818,88171.0,88170.0,0.0004]
[1763679750429,0.69272818,88171.0,88170.0,0.00101744]
[1763679752343,0.76675895,88171.0,88170.0,0.00101744]
[1763679752545,3.861509,88169.0,88160.0,0.0004]
[1763679752748,4.36048502,88161.0,88160.0,0.0004]
[1763679752962,4.39546703,88161.0,88160.0,0.0004]
[1763679753167,4.40705703,88161.0,88160.0,0.0004]
[1763679753367,4.40705703,88161.0,88160.0,0.00070879]
[1763679753825,4.36743809,88161.0,88160.0,0.00070879]
[1763679754014,4.36843809,88161.0,88160.0,0.00070879]
[1763679754374,0.04961894,88151.0,88121.0,0.01593]
[1763679754661,4.28069995,88151.0,88121.0,0.04768]
[1763679755010,4.29228995,88151.0,88121.0,0.04768]
[1763679755216,4.34439244,88151.0,88121.0,0.01593]
[1763679755786,4.34539244,88151.0,88121.0,0.01593]
[1763679755988,4.34439244,88151.0,88121.0,0.01593]
[1763679756397,4.34539244,88151.0,88121.0,0.01593]
[1763679757016,4.34639244,88151.0,88121.0,0.01593]
[1763679757572,0.37510249,88146.0,88121.0,0.01593]
[1763679757730,4.31086608,88141.0,88121.0,0.01593]
[1763679757939,4.34584809,88141.0,88121.0,0.01593]
[1763679758141,2.03490051,88141.0,88132.0,0.01593]
[1763679758364,2.04649051,88141.0,88121.0,0.01593]
[1763679758529,2.02207868,88141.0,88121.0,0.01593]
[1763679758730,2.04649393,88141.0,88121.0,0.01593]
[1763679758926,2.04649393,88141.0,88100.0,0.0004]
[1763679759134,4.24820149,88131.0,88100.0,0.0004]
[1763679759449,4.38451416,88131.0,88100.0,0.0004]
[1763679759647,4.36558464,88131.0,88100.0,0.0004]
[1763679760037,4.36558464,88131.0,88130.0,0.00132674]
[1763679760295,4.23661149,88130.0,88100.0,0.0004]
[1763679760506,0.06141102,88135.0,88100.0,0.0004]
[1763679760507,4.196099,88121.0,88100.0,0.0004]
[1763679760741,4.25227321,88121.0,88103.0,0.01593]
[1763679760943,4.26386321,88121.0,88103.0,0.01593]
[1763679761514,4.26386321,88121.0,88100.0,0.0004]
[1763679761853,4.31448215,88121.0,88100.0,0.0004]
[1763679762059,4.26486321,88121.0,88100.0,0.0004]
[1763679762791,4.26484604,88121.0,88100.0,0.0004]
[1763679763274,4.26584604,88121.0,88100.0,0.0004]
[1763679763693,4.31546498,88121.0,88100.0,0.0004]
[1763679764449,0.01,88111.0,88100.0,0.0004]
[1763679764633,4.23886025,88111.0,88100.0,0.0004]
[1763679764839,4.27384604,88111.0,88100.0,0.0004]
[1763679765192,4.32594853,88111.0,88100.0,0.0004]
[1763679765594,0.37510249,88108.0,88100.0,0.0004]
[1763679765813,0.37510249,88100.0,88090.0,0.0004]
[1763679766167,4.23412794,88081.0,88053.0,0.01593]
[1763679766327,4.27745937,88081.0,88053.0,0.01593]
[1763679766507,4.34115186,88081.0,88080.0,0.00194569]
[1763679766712,4.34115186,88081.0,88040.0,0.0004]
[1763679766713,0.37510249,88078.0,88040.0,0.0004]
[1763679766914,4.206099,88071.0,88040.0,0.0004]
[1763679767321,4.217689,88071.0,88040.0,0.0004]
[1763679767544,4.24932789,88071.0,88040.0,0.0004]
[1763679767747,4.217689,88071.0,88040.0,0.0004]
[1763679767973,4.217689,88071.0,88052.0,0.01593]
[1763679768192,0.92676,88071.0,88052.0,0.01593]
[1763679768720,0.92776,88071.0,88052.0,0.01593]
[1763679769286,0.575052,88071.0,88067.0,0.01593]
[1763679769640,0.575052,88071.0,88040.0,0.0004]
[1763679769641,0.598232,88071.0,88040.0,0.0004]
[1763679769846,0.04961894,88065.0,88040.0,0.0004]
[1763679770050,1.394387,88041.0,88040.0,0.0004]
[1763679770464,1.417567,88041.0,88040.0,0.0004]
[1763679771084,1.50125481,88041.0,88040.0,0.0004]
[1763679771286,1.51125481,88041.0,88040.0,0.0004]
[1763679772412,1.51117195,88041.0,88040.0,0.00163747]
[1763679772633,1.50117195,88041.0,88040.0,0.00163747]
[1763679772790,1.50217195,88041.0,88040.0,0.00163747]
[1763679772995,1.55179089,88041.0,88040.0,0.00163747]
[1763679773172,1.55079089,88041.0,88040.0,0.00163747]
[1763679773372,1.55179089,88041.0,88040.0,0.00163747]
[1763679773673,1.55277373,88041.0,88040.0,0.00163747]
[1763679773871,1.55177373,88041.0,88040.0,0.00163747]
[1763679774080,1.4510523,88041.0,88040.0,0.00163747]
[1763679774280,0.131418,88041.0,88040.0,0.00163747]
[1763679775059,0.143008,88041.0,88040.0,0.00163747]
[1763679775191,0.153598,88041.0,88040.0,0.00163747]
[1763679775408,0.476598,88041.0,88040.0,0.00163747]
[1763679775981,0.475598,88041.0,88040.0,0.00163747]
[1763679776737,0.476598,88041.0,88040.0,0.00163747]
[1763679776942,0.475598,88041.0,88040.0,0.00163747]
[1763679777377,0.476598,88041.0,88040.0,0.00163747]
[1763679777861,0.52870049,88041.0,88040.0,0.00163747]
[1763679778036,0.57831943,88041.0,88040.0,0.00163747]
[1763679778230,0.59923823,88041.0,88040.0,0.00731647]
[1763679778443,0.60023823,88041.0,88040.0,0.00731647]
[1763679778644,0.49851716,88041.0,88040.0,0.00731647]
[1763679778843,0.453418,88041.0,88040.0,0.00731647]
[1763679779048,0.466008,88041.0,88040.0,0.00731647]
[1763679779691,0.475598,88041.0,88040.0,0.00731647]
[1763679779891,0.477598,88041.0,88040.0,0.00731647]
[1763679780265,0.476598,88041.0,88040.0,0.00731647]
[1763679780467,0.50853526,88041.0,88040.0,0.00731647]
[1763679780901,0.50853526,88041.0,88020.0,0.0004]
[1763679780902,0.04961894,88031.0,88020.0,0.0004]
[1763679781105,4.26665883,88031.0,88020.0,0.0004]
[1763679781301,4.21703989,88031.0,88020.0,0.0004]
[1763679781828,2.876169,88031.0,88020.0,0.0004]
[1763679782184,2.89712137,88031.0,88020.0,0.0004]
[1763679782397,2.94774031,88031.0,88020.0,0.0004]
[1763679783218,2.94874031,88031.0,88020.0,0.0004]
[1763679783696,2.89659137,88031.0,88020.0,0.0004]
[1763679783898,0.63856937,88031.0,88020.0,0.0004]
[1763679784119,0.617617,88031.0,88020.0,0.0004]
[1763679784551,0.74937951,88031.0,88020.0,0.0004]
[1763679784928,0.45818108,88031.0,88020.0,0.0004]
[1763679785134,0.01106,88031.0,88020.0,0.0004]
[1763679785307,1.384865,88031.0,88020.0,0.0004]
[1763679785510,1.7288608,88031.0,88020.0,0.0004]
[1763679785946,1.707865,88031.0,88020.0,0.0004]
[1763679786164,1.72786066,88031.0,88020.0,0.0004]
[1763679786354,1.77896315,88031.0,88020.0,0.0004]
[1763679786561,1.8400846,88031.0,88020.0,0.0004]
[1763679786755,1.8400846,88031.0,88030.0,0.00070948]
[1763679787105,1.8400846,88031.0,88020.0,0.0004]
[1763679787106,0.323,88021.0,88020.0,0.0004]
[1763679787312,4.37895068,88021.0,88020.0,0.0004]
[1763679787513,4.32933174,88021.0,88020.0,0.0004]
[1763679788111,4.33839174,88021.0,88020.0,0.0004]
[1763679788302,4.34085237,88021.0,88020.0,0.0004]
[1763679788913,4.34991237,88021.0,88020.0,0.0004]
[1763679789889,4.39953131,88021.0,88020.0,0.0004]
[1763679790090,4.34991237,88021.0,88020.0,0.0004]
[1763679790491,4.35992973,88021.0,88020.0,0.0004]
[1763679790713,4.38422601,88021.0,88020.0,0.0004]
[1763679790930,4.03692973,88021.0,88020.0,0.0004]
[1763679791333,4.06123635,88021.0,88020.0,0.0004]
[1763679791741,4.06123635,88021.0,87998.0,0.0001]
[1763679791742,4.09735332,88021.0,87998.0,0.0001]
[1763679791942,0.05210249,87998.0,87949.0,0.03344]
[1763679792146,0.04961894,87983.0,87949.0,0.03344]
[1763679792316,3.861509,87981.0,87949.0,0.03344]
[1763679792517,0.04945365,87982.0,87949.0,0.03344]
[1763679792518,3.91112794,87979.0,87949.0,0.03344]
[1763679792802,3.861509,87977.0,87949.0,0.03344]
[1763679793008,3.861509,87975.0,87949.0,0.03344]
[1763679793262,0.00896,87982.0,87940.0,0.0002]
[1763679793263,0.00896,87950.0,87940.0,0.0002]
[1763679793497,0.323,87965.0,87940.0,0.0002]
[1763679793696,0.323,87961.0,87940.0,0.0002]
[1763679793875,3.153548,87958.0,87940.0,0.0002]
[1763679794203,0.03165943,87957.0,87941.0,0.03344]
[1763679794394,0.02110243,87956.0,87943.0,0.11476708]
[1763679794583,0.02110243,87955.0,87944.0,0.03012375]
[1763679794783,0.323,87976.0,87944.0,0.06356375]
[1763679794985,0.614841,87973.0,87954.0,0.02227]
[1763679795188,0.323,87970.0,87954.0,0.02227]
[1763679795387,0.11476708,87979.0,87954.0,0.02227]
[1763679795388,0.323,87966.0,87954.0,0.02227]
[1763679795594,0.323,87959.0,87954.0,0.02227]
[1763679795791,0.0211191,87958.0,87954.0,0.02227]
[1763679796044,0.0211191,87958.0,87955.0,0.03344]
[1763679796241,0.0211191,87958.0,87954.0,0.02227]
[1763679796777,0.5,87959.0,87948.0,0.03344]
[1763679796981,0.115233,87959.0,87948.0,0.03344]
[1763679797205,0.615233,87959.0,87948.0,0.03344]
[1763679797382,0.5,87960.0,87958.0,0.02227]
[1763679797582,0.618749,87960.0,87959.0,0.01638]
[1763679799006,0.37336615,87959.0,87958.0,0.00223015]
[1763679799203,0.327998,87959.0,87958.0,0.00223015]
[1763679799520,3.683886,87970.0,87958.0,0.00223015]
[1763679799886,0.00896,87971.0,87941.0,0.01364551]
[1763679799887,0.977568,87964.0,87941.0,0.01364551]
[1763679800073,1.785793,87962.0,87941.0,0.01364551]
[1763679800366,1.417584,87960.0,87941.0,0.01364551]
[1763679800498,0.51056476,87959.0,87941.0,0.01364551]
[1763679800702,1.583199,87962.0,87942.0,0.03344]
[1763679800908,0.552619,87960.0,87943.0,0.0136452]
[1763679801141,1.702863,87962.0,87943.0,0.0136452]
[1763679801342,0.572619,87960.0,87943.0,0.0136452]
[1763679801589,0.323,87961.0,87943.0,0.0136452]
[1763679801902,0.11476708,87965.0,87940.0,0.0002]
[1763679801904,1.188395,87958.0,87940.0,0.0002]
[1763679802116,0.01952355,87960.0,87940.0,0.0002]
[1763679802117,0.323,87955.0,87940.0,0.0002]
[1763679802310,1.69762,87952.0,87940.0,0.0002]
[1763679802522,1.349417,87953.0,87940.0,0.0002]
[1763679802726,0.323,87955.0,87940.0,0.03364]
[1763679802870,0.323,87951.0,87940.0,0.03364]
[1763679803349,0.323,87962.0,87950.0,0.02227]
[1763679803466,0.371611,87959.0,87940.0,0.03364]
[1763679803664,0.323,87956.0,87940.0,0.03364]
[1763679803869,0.110524,87952.0,87940.0,0.03364]
[1763679804073,4.361509,87964.0,87940.0,0.03364]
[1763679804269,0.11476708,87965.0,87940.0,0.03364]
[1763679804270,3.555046,87962.0,87940.0,0.03364]
[1763679804473,0.131321,87959.0,87940.0,0.03364]
[1763679804743,0.11476708,87965.0,87940.0,0.03364]
[1763679804744,0.51055729,87958.0,87941.0,0.01364551]
[1763679804927,0.858156,87963.0,87942.0,0.00636655]
[1763679805129,0.01055756,87962.0,87943.0,0.0136452]
[1763679805333,0.225052,87960.0,87944.0,0.03344]
[1763679805506,0.274459,87958.0,87944.0,0.03344]
[1763679805966,2.257863,87964.0,87944.0,0.03344]
[1763679806124,0.0105602,87963.0,87944.0,0.03344]
[1763679806322,2.489304,87962.0,87959.0,0.00219915]
[1763679806524,2.241741,87960.0,87944.0,0.03344]
[1763679806731,2.241741,87960.0,87940.0,0.0002]
[1763679806732,1.877379,87958.0,87940.0,0.0002]
[1763679806928,0.00896,87964.0,87940.0,0.0002]
[1763679806929,1.006012,87956.0,87940.0,0.0002]
[1763679807095,0.215807,87954.0,87941.0,0.03344]
[1763679807302,2.334407,87964.0,87941.0,0.03344]
[1763679807499,0.355732,87960.0,87953.0,0.02227]
[1763679807747,0.323,87957.0,87953.0,0.02227]
[1763679807901,0.438523,87954.0,87953.0,0.02227]
[1763679808106,0.323,87954.0,87953.0,0.02227]
[1763679808361,0.323,87975.0,87953.0,0.02227]
[1763679808619,0.323,87963.0,87953.0,0.02227]
[1763679808787,0.4023,87960.0,87953.0,0.02227]
[1763679808984,0.161554,87958.0,87953.0,0.02227]
[1763679809190,0.001,87964.0,87954.0,0.03344]
[1763679809374,0.25563,87962.0,87958.0,0.02227]
[1763679809571,0.298044,87963.0,87961.0,0.01638]
[1763679809848,3.861509,87978.0,87945.0,0.01638]
[1763679810061,0.491634,87961.0,87945.0,0.01638]
[1763679810287,0.15088405,87979.0,87946.0,0.03344]
[1763679810288,0.01056893,87960.0,87946.0,0.03344]
[1763679810498,0.12372708,87979.0,87946.0,0.16185181]
[1763679810499,1.372569,87976.0,87946.0,0.16185181]
[1763679810706,0.01056959,87975.0,87962.0,0.02227]
[1763679810908,0.11476708,87977.0,87962.0,0.02227]
[1763679810909,0.66515,87973.0,87962.0,0.02227]
[1763679811154,0.625426,87971.0,87961.0,0.01752]
[1763679811357,0.118384,87969.0,87961.0,0.01752]
[1763679811565,0.01056959,87968.0,87961.0,0.01752]
[1763679811772,0.01056959,87968.0,87961.0,0.05297716]
[1763679811985,0.664263,87981.0,87967.0,0.02315]
[1763679812185,0.12534007,87980.0,87968.0,0.007399]
[1763679812318,1.147509,87978.0,87968.0,0.007399]
[1763679812526,0.649728,87976.0,87968.0,0.007399]
[1763679812724,0.141159,87974.0,87968.0,0.007399]
[1763679812948,0.10299,87981.0,87975.0,0.00170326]
[1763679813148,0.130934,87979.0,87974.0,0.02343]
[1763679813368,0.01203,87987.0,87968.0,0.03485]
[1763679813369,0.01057909,87978.0,87969.0,0.01738]
[1763679813591,0.106698,87992.0,87969.0,0.01738]
[1763679813775,0.192006,87990.0,87977.0,0.02343]
[1763679813996,0.51058424,87989.0,87977.0,0.005828]
[1763679814209,0.11476708,88019.0,87977.0,0.005828]
[1763679814210,0.01203,88012.0,87994.0,0.02343]
[1763679814416,0.381215,88010.0,87998.0,0.02343]
[1763679814621,0.285174,88008.0,87998.0,0.02343]
[1763679814825,0.01058861,88007.0,87998.0,0.02343]
[1763679815031,0.21917,88005.0,87998.0,0.02343]
[1763679815253,0.01058861,88004.0,87998.0,0.065846]
[1763679815471,0.01203,88031.0,87995.0,0.01738]
[1763679815472,0.01203,88025.0,88001.0,0.11476708]
[1763679815685,0.11476708,88034.0,88018.0,0.02343]
[1763679815686,0.01059395,88024.0,88018.0,0.02343]
[1763679815887,0.169254,88022.0,88018.0,0.02343]
[1763679816099,0.323,88032.0,88018.0,0.02343]
[1763679816100,0.142965,88020.0,88018.0,0.02343]
[1763679816332,0.119427,88020.0,88019.0,0.01738]
[1763679816555,0.01059249,88020.0,88019.0,0.07566]
[1763679816694,0.323,88030.0,88019.0,0.07566]
[1763679817081,0.11476708,88034.0,88019.0,0.07566]
[1763679817082,0.463551,88028.0,88019.0,0.01738]
[1763679817256,0.323,88025.0,88019.0,0.01738]
[1763679817452,0.265656,88023.0,88019.0,0.01738]
[1763679817658,0.51059258,88022.0,88019.0,0.01738]
[1763679817863,3.861509,88033.0,88019.0,0.01738]
[1763679818068,0.323,88030.0,88019.0,0.01738]
[1763679818281,0.426169,88028.0,88019.0,0.01738]
[1763679818472,0.315777,88026.0,88019.0,0.01738]
[1763679818684,0.318738,88024.0,88019.0,0.01738]
[1763679818973,0.11476708,88034.0,88019.0,0.01738]
[1763679818974,0.161787,88022.0,88019.0,0.01738]
[1763679819132,0.5,88033.0,88005.0,0.01738]
[1763679819133,0.01058084,88021.0,88013.0,0.01738]
[1763679819337,1.390534,88019.0,88013.0,0.01738]
[1763679819653,0.870703,88017.0,88013.0,0.01738]
[1763679819858,0.771374,88015.0,88005.0,0.01738]
[1763679820196,0.737736,88013.0,87993.0,0.03485]
[1763679820398,0.505518,88011.0,88006.0,0.01738]
[1763679820703,1.554186,88016.0,88006.0,0.01738]
[1763679820901,1.269574,88014.0,88006.0,0.01738]
[1763679821104,0.978145,88012.0,88006.0,0.01738]
[1763679821319,0.12401,88010.0,88006.0,0.01738]
[1763679821462,2.0411,88033.0,88007.0,0.03485]
[1763679821665,0.323,88030.0,88009.0,0.02343]
[1763679821890,0.323,88027.0,88009.0,0.02343]
[1763679822094,0.11476708,88034.0,88009.0,0.02343]
[1763679822095,0.345493,88024.0,88010.0,0.03485]
[1763679822294,0.11476708,88034.0,88010.0,0.03485]
[1763679822295,0.323,88021.0,88010.0,0.03485]
[1763679822496,0.323,88017.0,88006.0,0.01738]
[1763679822703,0.323,88015.0,88007.0,0.03485]
[1763679822895,0.166443,88014.0,88007.0,0.03485]
[1763679823143,0.656107,88014.0,88007.0,0.03485]
[1763679823311,0.656107,88014.0,88006.0,0.01738]
[1763679823520,0.603885,88014.0,88007.0,0.03485]
[1763679823805,0.323,88033.0,88013.0,0.02343]
[1763679823997,0.323,88031.0,88022.0,0.00024761]
[1763679824199,0.323,88027.0,88022.0,0.00024761]
[1763679824479,0.295807,88024.0,88022.0,0.00024761]
[1763679825304,0.423766,88033.0,88023.0,0.02343]
[1763679826033,0.276387,88033.0,88024.0,0.00585276]
[1763679826230,3.256247,88044.0,88024.0,0.00585276]
[1763679826431,0.03170803,88043.0,88022.0,0.00024761]
[1763679826630,2.906228,88041.0,88022.0,0.00024761]
[1763679826839,0.461452,88043.0,88022.0,0.00024761]
[1763679827038,3.63413,88047.0,88023.0,0.03485]
[1763679827288,3.195797,88045.0,88023.0,0.03485]
[1763679827542,3.195797,88045.0,88024.0,0.01738]
[1763679827713,3.716996,88047.0,88024.0,0.01738]
[1763679827856,3.172497,88045.0,88024.0,0.05223]
[1763679828069,0.397236,88045.0,88024.0,0.05223]
[1763679828447,0.756483,88058.0,88044.0,0.04081]
[1763679828579,0.347374,88058.0,88044.0,0.04081]
[1763679828986,0.323,88057.0,88044.0,0.04081]
[1763679829186,0.323,88055.0,88044.0,0.04081]
[1763679829389,0.323,88051.0,88044.0,0.04081]
[1763679829590,0.323,88049.0,88044.0,0.01738]
[1763679829915,0.323,88043.0,88038.0,0.01738]
[1763679831197,0.01243,88060.0,88038.0,0.01738]
[1763679831423,3.352801,88047.0,88030.0,0.01738]
[1763679831629,0.323,88043.0,88030.0,0.01738]
[1763679831833,0.323,88041.0,88024.0,0.01738]
[1763679832069,2.23783,88040.0,88025.0,0.1486]
[1763679832385,0.743032,88040.0,88025.0,0.1486]
[1763679832685,3.484299,88046.0,88025.0,0.1486]
[1763679833064,2.991829,88045.0,88026.0,0.05495776]
[1763679833306,3.119872,88047.0,88026.0,0.05495776]
[1763679833511,3.059984,88047.0,88026.0,0.05495776]
[1763679833709,1.763108,88047.0,88027.0,0.03485]
[1763679834650,1.763108,88047.0,88025.0,0.1486]
[1763679834856,0.01203,88046.0,88025.0,0.1486]
[1763679835078,0.45210249,88070.0,88027.0,0.11476708]
[1763679835079,2.90077772,88045.0,88027.0,0.11476708]
[1763679835281,0.0303976,88077.0,88050.0,0.01999998]
[1763679835540,0.0029511,88110.0,88053.0,0.37510249]
[1763679835893,0.0029511,88110.0,88054.0,0.06948645]
[1763679836068,0.03247,88108.0,88053.0,0.05210249]
[1763679836275,0.03247,88099.0,88053.0,0.05210249]
[1763679836620,0.03247,88099.0,88059.0,0.16686957]
[1763679836844,0.53247,88099.0,88059.0,0.16686957]
[1763679837411,0.03247,88099.0,88059.0,0.16686957]
[1763679838459,0.53247,88099.0,88059.0,0.16686957]
[1763679838660,0.03247,88099.0,88059.0,0.16686957]
[1763679839098,0.323,88098.0,88059.0,0.16686957]
[1763679839595,0.01748,88090.0,88059.0,0.16686957]
[1763679841651,0.323,88098.0,88059.0,0.16686957]
[1763679841781,0.01581,88130.0,88071.0,0.05210249]
[1763679841782,0.03247,88122.0,88071.0,0.05210249]
[1763679841983,0.03247,88122.0,88089.0,0.11476708]
[1763679842187,0.01748,88123.0,88090.0,0.05210249]
[1763679842723,0.51748,88123.0,88090.0,0.05210249]
[1763679842955,0.01748,88123.0,88103.0,0.11476708]
[1763679843162,0.01581,88130.0,88103.0,0.11476708]
[1763679843368,0.0004,88140.0,88104.0,0.05210249]
[1763679843587,0.00268939,88110.0,88104.0,0.05210249]
[1763679844168,0.00268939,88110.0,88104.0,0.37510249]
[1763679844713,0.00268939,88110.0,88104.0,0.37610249]
[1763679845164,0.00268939,88110.0,88104.0,0.46042871]
[1763679845642,0.0166,88159.0,88121.0,0.05210249]
[1763679845846,0.323,88155.0,88135.0,0.11476708]
[1763679846044,0.323,88153.0,88135.0,0.11476708]
[1763679846668,0.169061,88158.0,88135.0,0.11476708]
[1763679846867,0.669061,88158.0,88135.0,0.11476708]
[1763679847070,0.168864,88156.0,88135.0,0.11476708]
[1763679847276,0.00080327,88136.0,88135.0,0.11576708]
[1763679847436,0.00080327,88136.0,88135.0,0.11476708]
[1763679848490,0.00080327,88136.0,88121.0,0.16686957]
[1763679848491,0.00080327,88136.0,88121.0,0.11476708]
[1763679848658,0.0166,88144.0,88122.0,0.11476708]
[1763679848889,0.15223708,88143.0,88104.0,0.323]
[1763679849039,0.0166,88123.0,88090.0,0.57930194]
[1763679849233,0.0166,88123.0,88090.0,0.56930195]
[1763679849572,0.245847,88139.0,88117.0,0.11476708]
[1763679849776,0.323,88142.0,88117.0,0.11476708]
[1763679849975,0.693319,88139.0,88135.0,0.001]
[1763679850183,0.929248,88136.0,88135.0,0.001]
[1763679850380,0.929248,88136.0,88093.0,0.323]
[1763679850381,0.81036,88135.0,88093.0,0.323]
[1763679850557,0.743206,88133.0,88093.0,0.323]
[1763679850753,0.231822,88135.0,88117.0,0.001]
[1763679851063,0.43776708,88140.0,88117.0,0.001]
[1763679851064,0.350997,88139.0,88117.0,0.001]
[1763679851274,0.350997,88139.0,88104.0,0.05210249]
[1763679851478,0.408237,88138.0,88104.0,0.05210249]
[1763679851725,1.461574,88137.0,88104.0,0.05210249]
[1763679852036,1.00311,88136.0,88104.0,0.05210249]
[1763679852181,1.01773,88135.0,88104.0,0.05210249]
[1763679852387,0.364649,88135.0,88104.0,0.05210249]
[1763679853016,2.078958,88138.0,88104.0,0.05210249]
[1763679853323,0.05198341,88139.0,88104.0,0.05210249]
[1763679853324,2.083733,88139.0,88104.0,0.05210249]
[1763679853690,0.290412,88139.0,88104.0,0.05210249]
[1763679853891,0.0003708,88122.0,88104.0,0.05210249]
[1763679854105,0.290412,88139.0,88104.0,0.05210249]
[1763679854106,0.385843,88139.0,88104.0,0.05210249]
[1763679854308,0.370456,88138.0,88104.0,0.05210249]
[1763679854741,0.03747,88137.0,88104.0,0.05210249]
[1763679854959,1.248557,88136.0,88104.0,0.05210249]
[1763679855201,1.033759,88135.0,88104.0,0.05210249]
[1763679855386,0.323,88138.0,88104.0,0.05210249]
[1763679855591,0.33483,88137.0,88104.0,0.05210249]
[1763679855792,0.282429,88137.0,88105.0,0.01362011]
[1763679856710,0.282429,88137.0,88117.0,0.11476708]
[1763679856944,0.282429,88137.0,88118.0,0.01290262]
[1763679857152,0.654385,88143.0,88117.0,0.11476708]
[1763679857423,0.202671,88143.0,88119.0,0.01361794]
[1763679858251,0.323,88156.0,88117.0,0.11476708]
[1763679858252,0.03747,88169.0,88131.0,0.11476708]
[1763679858383,0.664782,88160.0,88131.0,0.11476708]
[1763679858804,0.19564176,88160.0,88131.0,0.11476708]
[1763679859150,0.696389,88160.0,88132.0,0.06571842]
[1763679859298,0.196389,88160.0,88132.0,0.05210249]
[1763679859696,0.00071061,88133.0,88132.0,0.05210249]
[1763679861120,0.00047061,88133.0,88132.0,0.38871842]
[1763679861439,0.00047061,88133.0,88132.0,0.37510249]
[1763679861893,0.00047061,88133.0,88132.0,0.52430249]
[1763679862100,0.00047061,88133.0,88132.0,0.52330249]
[1763679862502,0.04065944,88238.0,88132.0,0.52330249]
[1763679862503,0.0166,88199.0,88151.0,0.05210249]
[1763679862714,0.2004,88230.0,88151.0,0.05210249]
[1763679862715,0.692521,88205.0,88178.0,0.1144185]